[Event "GER-chT Youth Countries 2020"]
[Site "Berlin"]
[Date "2020.09.30"]
[Round "2"]
[White "Yi, Danny"]
[Black "Kolb, Tobias"]
[Result "1-0"]
[ECO "B11"]
[WhiteElo "2266"]
[BlackElo "2268"]
[Annotator "ChessBase"]
[PlyCount "81"]
[EventDate "2020.09.30"]
[EventType "team-tourn"]
[EventRounds "7"]
[EventCountry "GER"]
[SourceTitle "playchess.com"]
[Source "ChessBase"]
[SourceQuality "1"]
[WhiteTeam "Württemberg"]
[BlackTeam "Bayern"]
[WhiteTeamCountry "GER"]
[BlackTeamCountry "GER"]
[TimeControl "30/5400+30:0"]

1. e4 {[%emt 0:00:00]} c6 {[%emt 0:00:00]} 2. Nf3 {[%emt 0:00:00]} d5 {[%emt 0:00:00]} 3. Nc3 {[%emt 0:00:00]} Bg4 {[%emt 0:00:01]} 4. h3 {[%emt 0:00:00]} Bxf3 {[%emt 0:00:07]} 5. Qxf3 {[%emt 0:00:00]} e6 {[%emt 0:00:06]} 6. d3 {[%emt 0:00:06]} d4 {[%emt 0:08:26]} 7. Nb1 {[%emt 0:07:59]} Bb4+ {[%emt 0:00:19]} 8. c3 {[%emt 0:02:59]} Ba5 {[%emt 0:06:51]} 9. Qg3 {[%emt 0:06:37]} Qf6 {[%emt 0:04:35]} 10. b4 {[%emt 0:02:53]} Bb6 {[%emt 0:03:21]} 11. c4 {[%emt 0:01:21]} a5 {[%emt 0:09:57]} 12. b5 {[%emt 0:03:22]} a4 {[%emt 0:16:11]} 13. Bd2 {[%emt 0:01:40]} Nd7 {[%emt 0:05:33]} 14. Be2 {[%emt 0:06:48]} Qg6 {[%emt 0:02:57]} 15. Qxg6 {[%emt 0:02:02]} hxg6 {[%emt 0:00:12]} 16. O-O {[%emt 0:01:38]} Ne7 {[%emt 0:04:26]} 17. Na3 {[%emt 0:02:29]} Bc5 {[%emt 0:01:26]} 18. Nc2 {[%emt 0:00:37]} cxb5 {[%emt 0:00:24]} 19. cxb5 {[%emt 0:02:09]} Nc8 {[%emt 0:03:17]} 20. Rab1 {[%emt 0:01:55]} Nd6 {[%emt 0:01:54]} 21. Bb4 {[%emt 0:11:49]} b6 {[%emt 0:04:07]} 22. Nxd4 {[%emt 0:03:58]} Nxe4 {[%emt 0:08:07]} 23. Nxe6 {[%emt 0:01:38]} fxe6 {[%emt 0:03:30]} 24. dxe4 {[%emt 0:00:27]} Bxb4 {[%emt 0:00:21]} 25. Rxb4 {[%emt 0:00:58]} Ke7 {[%emt 0:00:34]} 26. Rd1 {[%emt 0:03:08]} Nc5 {[%emt 0:01:48]} 27. Rbd4 {[%emt 0:01:53]} g5 {[%emt 0:03:58]} 28. f3 {[%emt 0:05:18]} Rhc8 {[%emt 0:02:51]} 29. Kf2 {[%emt 0:01:48]} a3 {[%emt 0:00:44]} 30. Ke3 {[%emt 0:03:57]} Na4 {[%emt 0:02:50]} 31. Rd7+ {[%emt 1:34:43]} Kf6 {[%emt 1:30:10]} 32. h4 {[%emt 0:09:03]} Rc3+ {[%emt 0:02:05]} 33. R1d3 {[%emt 0:06:50]} gxh4 {[%emt 0:00:00]} 34. f4 {[%emt 0:01:06]} Kg6 {[%emt 0:01:41]} 35. R7d6 {[%emt 0:02:05]} Kf7 {[%emt 0:00:18]} 36. Rxc3 {[%emt 0:00:44]} Nxc3 {[%emt 0:00:01]} 37. Bc4 {[%emt 0:00:08]} Ra4 {[%emt 0:00:37]} 38. Bxe6+ {[%emt 0:02:30]} Ke7 {[%emt 0:00:03]} 39. Rxb6 {[%emt 0:00:34]} Nxe4 {[%emt 0:02:41]} 40. Bb3 {[%emt 0:00:14]} Rb4 {[%emt 0:00:48]} 41. Re6+ {[%emt 0:00:08]} 1-0

[Event "GER-chT Youth Countries 2020"]
[Site "Berlin"]
[Date "2020.09.30"]
[Round "2"]
[White "Dahl, Christoph"]
[Black "Musiolik, David"]
[Result "0-1"]
[ECO "A06"]
[WhiteElo "2262"]
[BlackElo "2198"]
[Annotator "ChessBase"]
[PlyCount "93"]
[EventDate "2020.09.30"]
[EventType "team-tourn"]
[EventRounds "7"]
[EventCountry "GER"]
[SourceTitle "playchess.com"]
[Source "ChessBase"]
[SourceQuality "1"]
[WhiteTeam "Sachsen"]
[BlackTeam "Rheinland-Pfalz"]
[WhiteTeamCountry "GER"]
[BlackTeamCountry "GER"]
[TimeControl "30/5400+30:0"]

1. Nf3 d5 2. g3 g6 3. Bg2 Bg7 4. d4 c6 5. O-O Nf6 6. Re1 O-O 7. Nc3 Ne4 8. Nxe4 dxe4 9. Ne5 Bf5 10. g4 Be6 11. Bxe4 Nd7 12. Nxd7 Qxd7 13. g5 Qxd4 14. Qxd4 Bxd4 15. c3 Bb6 16. Bc2 Rfd8 17. Bf4 Rd7 18. a4 Rad8 19. Red1 Bg4 20. Kf1 f6 21. Rxd7 Rxd7 22. Rd1 Rxd1+ 23. Bxd1 Kf7 24. Kg2 Bc5 25. Bb3+ Be6 26. Bc2 Bc4 27. e4 a6 28. h4 e5 29. Bd2 Be6 30. f4 exf4 31. Bxf4 fxg5 32. hxg5 Ke7 33. Kf3 Bd6 34. Bxd6+ Kxd6 35. Kf4 a5 36. Bd1 b5 37. Bc2 Bc4 38. Bd1 Be6 39. b4 c5 40. bxc5+ Kxc5 41. axb5 Kxb5 42. Ke5 Bg8 43. Kf6 a4 44. Bxa4+ Kxa4 45. e5 Kb5 46. e6 Kc6 47. e7 0-1

[Event "GER-chT Youth Countries 2020"]
[Site "Berlin"]
[Date "2020.09.30"]
[Round "2"]
[White "Hommer, Jeremy"]
[Black "Poetsch, Leonore"]
[Result "0-1"]
[ECO "D00"]
[WhiteElo "2246"]
[BlackElo "1984"]
[Annotator "ChessBase"]
[PlyCount "109"]
[EventDate "2020.09.30"]
[EventType "team-tourn"]
[EventRounds "7"]
[EventCountry "GER"]
[SourceTitle "playchess.com"]
[Source "ChessBase"]
[SourceQuality "1"]
[WhiteTeam "Niedersachsen"]
[BlackTeam "Hessen"]
[WhiteTeamCountry "GER"]
[BlackTeamCountry "GER"]
[TimeControl "30/5400+30:0"]

1. d4 d5 {[%emt 0:00:00]} 2. Bf4 {[%emt 0:00:00]} Nf6 {[%emt 0:00:00]} 3. e4 {[%emt 0:00:00]} Bf5 {[%emt 0:01:39]} 4. c4 {[%emt 0:00:00]} e6 {[%emt 0:01:11]} 5. Nc3 {[%emt 0:00:11]} c6 {[%emt 0:01:44]} 6. Qb3 {[%emt 0:03:48]} b6 {[%emt 0:02:30]} 7. Nf3 {[%emt 0:04:09]} Nbd7 {[%emt 0:01:44]} 8. h3 {[%emt 0:04:39]} Be7 {[%emt 0:02:07]} 9. Be2 {[%emt 0:00:25]} O-O {[%emt 0:03:09]} 10. O-O {[%emt 0:01:10]} dxc4 {[%emt 0:02:26]} 11. Bxc4 {[%emt 0:16:52]} c5 {[%emt 0:03:17]} 12. Qd1 {[%emt 0:02:44]} a6 {[%emt 0:02:49]} 13. a4 {[%emt 0:02:29]} Qc8 {[%emt 0:03:27]} 14. Qe2 {[%emt 0:11:16]} Nxe4 {[%emt 0:02:24]} 15. d5 {[%emt 0:00:20]} Nxc3 16. bxc3 Nf6 {[%emt 0:16:17]} 17. d6 {[%emt 0:06:52]} Bd8 {[%emt 0:00:13]} 18. Rfd1 {[%emt 0:07:01]} Ne4 {[%emt 0:03:04]} 19. Rac1 {[%emt 0:01:56]} Bf6 {[%emt 0:03:09]} 20. Ne5 {[%emt 0:01:14]} Rd8 {[%emt 0:03:06]} 21. f3 {[%emt 0:08:18]} Nxd6 {[%emt 0:03:24]} 22. Rxd6 {[%emt 0:03:39]} Rxd6 {[%emt 0:00:14]} 23. Qe4 {[%emt 0:00:09]} Bxh3 {[%emt 0:04:06]} 24. gxh3 {[%emt 0:00:50]} Bxe5 {[%emt 0:01:36]} 25. Bxe5 {[%emt 0:00:16]} Rd7 {[%emt 0:01:58]} 26. Kh1 {[%emt 0:01:10]} Kh8 {[%emt 0:02:54]} 27. Rg1 {[%emt 0:06:09]} f6 {[%emt 0:00:56]} 28. Bf4 {[%emt 0:00:19]} e5 {[%emt 0:01:04]} 29. Be3 {[%emt 0:00:15]} Rd6 {[%emt 0:01:46]} 30. Kh2 {[%emt 0:03:04]} Qd7 {[%emt 0:03:15]} 31. Ra1 {[%emt 1:40:08]} Qc8 {[%emt 1:34:44]} 32. Bd5 {[%emt 0:00:14]} Rb8 {[%emt 0:01:58]} 33. Rb1 {[%emt 0:01:52]} f5 {[%emt 0:07:08]} 34. c4 {[%emt 0:01:55]} f4 {[%emt 0:01:06]} 35. Bd2 {[%emt 0:00:51]} Rh6 {[%emt 0:02:25]} 36. Qe1 {[%emt 0:00:41]} Qe8 {[%emt 0:01:24]} 37. Bc3 {[%emt 0:00:44]} Rh5 {[%emt 0:03:13]} 38. a5 {[%emt 0:02:15]} bxa5 {[%emt 0:03:37]} 39. Rxb8 {[%emt 0:00:21]} Qxb8 {[%emt 0:00:13]} 40. Bxa5 {[%emt 0:00:39]} Rg5 {[%emt 0:06:08]} 41. Be6 {[%emt 0:01:03]} Rg6 {[%emt 0:00:00]} 42. Bd5 {[%emt 0:00:00]} Qb2+ {[%emt 0:00:00]} 43. Kh1 {[%emt 0:00:00]} Rg3 {[%emt 0:00:00]} 44. Be6 {[%emt 0:00:00]} Qa3 45. Bc7 {[%emt 0:00:00]} Rxf3 {[%emt 0:00:00]} 46. Qg1 {[%emt 0:00:00]} Qd3 {[%emt 0:00:00]} 47. Bxe5 {[%emt 0:00:00]} Rg3 {[%emt 0:00:00]} 48. Bxg7+ {[%emt 0:00:00]} Rxg7 {[%emt 0:00:00]} 49. Bg4 {[%emt 0:00:00]} Qe4+ {[%emt 0:00:00]} 50. Kh2 {[%emt 0:00:00]} h5 51. Qd1 {[%emt 0:00:00]} hxg4 {[%emt 0:01:07]} 52. Qd8+ {[%emt 0:00:00]} Kh7 53. Qh4+ {[%emt 0:00:00]} Kg8 {[%emt 0:01:00]} 54. Qd8+ {[%emt 0:01:13]} Kf7 {[%emt 0:00:12]} 55. Qd7+ 0-1

[Event "GER-chT Youth Countries 2020"]
[Site "Berlin"]
[Date "2020.09.30"]
[Round "2"]
[White "Costa, Leonardo"]
[Black "Deuer, Marius"]
[Result "1/2-1/2"]
[ECO "C44"]
[WhiteElo "2245"]
[BlackElo "2161"]
[Annotator "ChessBase"]
[PlyCount "83"]
[EventDate "2020.09.30"]
[EventType "team-tourn"]
[EventRounds "7"]
[EventCountry "GER"]
[SourceTitle "playchess.com"]
[Source "ChessBase"]
[SourceQuality "1"]
[WhiteTeam "Bayern"]
[BlackTeam "Württemberg"]
[WhiteTeamCountry "GER"]
[BlackTeamCountry "GER"]
[TimeControl "30/5400+30:0"]

1. e4 {[%emt 0:00:00]} e5 {[%emt 0:00:00]} 2. Nf3 {[%emt 0:00:00]} Nc6 {[%emt 0:00:00]} 3. d4 {[%emt 0:02:33]} exd4 {[%emt 0:00:00]} 4. Nxd4 {[%emt 0:00:04]} Nf6 {[%emt 0:00:00]} 5. Nc3 {[%emt 0:00:03]} Bb4 {[%emt 0:00:04]} 6. Nxc6 {[%emt 0:00:09]} bxc6 {[%emt 0:00:06]} 7. Bd3 {[%emt 0:00:04]} d5 {[%emt 0:00:03]} 8. exd5 {[%emt 0:00:05]} O-O {[%emt 0:00:04]} 9. O-O {[%emt 0:00:05]} cxd5 {[%emt 0:14:45]} 10. h3 {[%emt 0:00:15]} Bd6 {[%emt 0:00:31]} 11. Qf3 {[%emt 0:03:32]} Rb8 {[%emt 0:03:27]} 12. Re1 {[%emt 0:15:45]} Re8 {[%emt 0:07:07]} 13. Rxe8+ {[%emt 0:31:29]} Qxe8 {[%emt 0:00:16]} 14. Bg5 {[%emt 0:00:41]} Qe5 {[%emt 0:13:29]} 15. Bxf6 {[%emt 0:00:07]} Qh2+ {[%emt 0:00:07]} 16. Kf1 {[%emt 0:00:04]} Qh1+ {[%emt 0:00:07]} 17. Ke2 {[%emt 0:00:04]} Qxa1 {[%emt 0:00:05]} 18. Nxd5 {[%emt 0:19:18]} gxf6 {[%emt 0:07:23]} 19. Qxf6 {[%emt 0:21:51]} Bg4+ {[%emt 0:07:28]} 20. hxg4 {[%emt 0:00:17]} Qxb2 {[%emt 0:00:09]} 21. Bxh7+ {[%emt 0:03:30]} Kxh7 {[%emt 0:11:06]} 22. Qxf7+ {[%emt 0:00:05]} Kh8 {[%emt 0:00:06]} 23. Qh5+ {[%emt 0:00:55]} Kg7 {[%emt 0:00:08]} 24. Qg5+ {[%emt 0:00:05]} Kf7 {[%emt 0:00:21]} 25. Qh5+ {[%emt 0:00:26]} Kf8 {[%emt 0:00:09]} 26. Qf5+ {[%emt 0:00:59]} Ke8 {[%emt 0:01:07]} 27. Qg6+ {[%emt 0:00:31]} Kd7 {[%emt 0:01:14]} 28. Nf6+ {[%emt 0:00:16]} Kc8 {[%emt 0:00:43]} 29. Qg8+ {[%emt 0:00:14]} Kb7 {[%emt 0:00:09]} 30. Qd5+ {[%emt 0:00:05]} Ka6 {[%emt 0:00:21]} 31. Qc6+ {[%emt 1:31:20]} Qb6 {[%emt 1:31:49]} 32. Qa4+ {[%emt 0:00:33]} Qa5 {[%emt 0:03:02]} 33. Qc6+ {[%emt 0:00:33]} Rb6 {[%emt 0:01:06]} 34. Qe8 {[%emt 0:00:31]} Qe5+ {[%emt 0:00:12]} 35. Qxe5 {[%emt 0:00:03]} Bxe5 {[%emt 0:00:08]} 36. Nd7 {[%emt 0:00:02]} Re6 {[%emt 0:00:52]} 37. Nc5+ {[%emt 0:00:05]} Kb5 {[%emt 0:00:29]} 38. Nxe6 {[%emt 0:00:04]} Kb4 {[%emt 0:00:06]} 39. Kd3 {[%emt 0:00:26]} a5 {[%emt 0:00:56]} 40. f4 {[%emt 0:00:11]} Bh8 {[%emt 0:00:26]} 41. Nxc7 {[%emt 0:00:50]} a4 {[%emt 0:00:41]} 42. Nd5+ {[%emt 0:00:00]} 1/2-1/2

[Event "GER-chT Youth Countries 2020"]
[Site "Berlin"]
[Date "2020.09.30"]
[Round "2"]
[White "Colbow, Collin"]
[Black "Kuznecovs, Nikita"]
[Result "1-0"]
[ECO "C03"]
[WhiteElo "2210"]
[BlackElo "2276"]
[Annotator "ChessBase"]
[PlyCount "87"]
[EventDate "2020.09.30"]
[EventType "team-tourn"]
[EventRounds "7"]
[EventCountry "GER"]
[SourceTitle "playchess.com"]
[Source "ChessBase"]
[SourceQuality "1"]
[WhiteTeam "Bremen"]
[BlackTeam "Thüringen"]
[WhiteTeamCountry "GER"]
[BlackTeamCountry "LAT"]
[TimeControl "30/5400+30:0"]

1. e4 {[%emt 0:00:00]} e6 {[%emt 0:00:00]} 2. d4 {[%emt 0:00:00]} d5 {[%emt 0:00:00]} 3. Nd2 {[%emt 0:00:00]} Be7 {[%emt 0:00:00]} 4. Bd3 {[%emt 0:00:00]} c5 {[%emt 0:00:00]} 5. dxc5 {[%emt 0:00:06]} Nf6 {[%emt 0:00:06]} 6. Qe2 {[%emt 0:00:32]} O-O {[%emt 0:00:28]} 7. Ngf3 {[%emt 0:00:41]} a5 {[%emt 0:00:10]} 8. O-O {[%emt 0:00:28]} Na6 {[%emt 0:00:07]} 9. e5 {[%emt 0:00:07]} Nd7 {[%emt 0:00:06]} 10. c4 {[%emt 0:00:07]} Ndxc5 {[%emt 0:00:05]} 11. Bb1 {[%emt 0:00:33]} Nb4 {[%emt 0:00:07]} 12. Rd1 {[%emt 0:12:27]} b6 {[%emt 0:00:31]} 13. Nd4 {[%emt 0:16:07]} dxc4 {[%emt 0:15:18]} 14. Nxc4 {[%emt 0:04:54]} Ba6 {[%emt 0:00:42]} 15. a3 {[%emt 0:21:56]} Nd5 {[%emt 0:00:49]} 16. Qc2 {[%emt 0:00:59]} g6 {[%emt 0:26:25]} 17. Bh6 {[%emt 0:02:55]} Rc8 {[%emt 0:08:06]} 18. Bxf8 {[%emt 0:01:47]} Bxf8 {[%emt 0:02:39]} 19. Nd6 {[%emt 0:04:57]} Bxd6 {[%emt 0:01:34]} 20. exd6 {[%emt 0:00:14]} e5 {[%emt 0:20:27]} 21. Nc6 {[%emt 0:12:16]} Rxc6 {[%emt 0:09:57]} 22. Rxd5 {[%emt 0:00:15]} Rxd6 {[%emt 0:00:08]} 23. Rxd6 {[%emt 0:00:29]} Qxd6 {[%emt 0:00:06]} 24. Ba2 {[%emt 0:01:21]} Qd4 {[%emt 0:02:27]} 25. Qc3 {[%emt 0:03:23]} Qf4 {[%emt 0:01:14]} 26. Qe3 {[%emt 0:03:50]} Qf6 {[%emt 0:00:39]} 27. Rd1 {[%emt 0:01:41]} a4 {[%emt 0:03:54]} 28. Rd5 {[%emt 0:02:27]} e4 {[%emt 0:06:46]} 29. Qd4 {[%emt 0:00:19]} Qxd4 {[%emt 0:00:32]} 30. Rxd4 {[%emt 0:00:05]} Bd3 {[%emt 0:00:19]} 31. Rd6 {[%emt 1:31:36]} b5 {[%emt 1:30:26]} 32. Rf6 {[%emt 0:01:23]} Nb3 {[%emt 0:00:56]} 33. Bxb3 {[%emt 0:00:07]} axb3 {[%emt 0:00:07]} 34. Rd6 {[%emt 0:00:12]} Kf8 {[%emt 0:01:05]} 35. Rd4 {[%emt 0:00:11]} Ke7 {[%emt 0:00:40]} 36. Rb4 {[%emt 0:00:21]} Kd6 {[%emt 0:00:32]} 37. Rxb3 {[%emt 0:00:29]} f5 {[%emt 0:00:11]} 38. f4 {[%emt 0:01:47]} Kd5 {[%emt 0:00:23]} 39. Kf2 {[%emt 0:00:47]} Kd4 {[%emt 0:00:07]} 40. Rb4+ {[%emt 0:01:22]} Bc4 {[%emt 0:00:14]} 41. b3 {[%emt 0:00:21]} Kd3 {[%emt 0:00:40]} 42. bxc4 {[%emt 0:00:48]} bxc4 {[%emt 0:00:24]} 43. Ke1 {[%emt 0:02:09]} c3 {[%emt 0:00:17]} 44. Rb7 {[%emt 0:00:17]} 1-0

[Event "GER-chT Youth Countries 2020"]
[Site "Berlin"]
[Date "2020.09.30"]
[Round "2"]
[White "Fromm, Marius"]
[Black "Hesse, Henrik"]
[Result "1/2-1/2"]
[ECO "C42"]
[WhiteElo "2190"]
[BlackElo "2242"]
[Annotator "ChessBase"]
[PlyCount "37"]
[EventDate "2020.09.30"]
[EventType "team-tourn"]
[EventRounds "7"]
[EventCountry "GER"]
[SourceTitle "playchess.com"]
[Source "ChessBase"]
[SourceQuality "1"]
[WhiteTeam "Mecklenburg-Vorpommern"]
[BlackTeam "Berlin"]
[WhiteTeamCountry "GER"]
[BlackTeamCountry "GER"]
[TimeControl "30/5400+30:0"]

1. e4 {[%emt 0:00:00]} e5 {[%emt 0:01:04]} 2. Nf3 {[%emt 0:00:00]} Nf6 {[%emt 0:00:06]} 3. Nxe5 {[%emt 0:00:00]} d6 {[%emt 0:00:06]} 4. Nf3 {[%emt 0:00:00]} Nxe4 {[%emt 0:00:07]} 5. d4 {[%emt 0:00:00]} d5 {[%emt 0:00:18]} 6. Bd3 {[%emt 0:00:12]} Nc6 {[%emt 0:00:11]} 7. O-O {[%emt 0:02:59]} Be7 {[%emt 0:00:24]} 8. Re1 {[%emt 0:01:51]} Bf5 {[%emt 0:05:19]} 9. Nbd2 {[%emt 0:00:50]} Nd6 {[%emt 0:08:35]} 10. Nf1 {[%emt 0:07:42]} O-O {[%emt 0:04:45]} 11. Ng3 {[%emt 0:01:49]} Bg6 {[%emt 0:04:15]} 12. c3 {[%emt 0:03:22]} Rb8 {[%emt 0:18:40]} 13. a4 {[%emt 0:03:17]} Bf6 {[%emt 0:04:54]} 14. Ne5 {[%emt 0:06:00]} Bxe5 {[%emt 0:07:34]} 15. dxe5 {[%emt 0:00:08]} Ne4 {[%emt 0:01:11]} 16. f4 {[%emt 0:22:50]} Nxg3 {[%emt 0:05:03]} 17. hxg3 {[%emt 0:00:09]} Bxd3 {[%emt 0:01:00]} 18. Qxd3 {[%emt 0:00:05]} d4 {[%emt 0:00:19]} 19. Bd2 {[%emt 0:05:18]} 1/2-1/2

[Event "GER-chT Youth Countries 2020"]
[Site "Berlin"]
[Date "2020.09.30"]
[Round "2"]
[White "Lesny, Florian"]
[Black "Knuedel, Torben"]
[Result "0-1"]
[ECO "C50"]
[WhiteElo "2178"]
[BlackElo "2211"]
[Annotator "ChessBase"]
[PlyCount "50"]
[EventDate "2020.09.30"]
[EventType "team-tourn"]
[EventRounds "7"]
[EventCountry "GER"]
[SourceTitle "playchess.com"]
[Source "ChessBase"]
[SourceQuality "1"]
[WhiteTeam "Hessen"]
[BlackTeam "Niedersachsen"]
[WhiteTeamCountry "GER"]
[BlackTeamCountry "GER"]
[TimeControl "30/5400+30:0"]

1. e4 {[%emt 0:00:00]} e5 {[%emt 0:00:00]} 2. Nf3 {[%emt 0:00:00]} Nc6 {[%emt 0:00:00]} 3. Bc4 {[%emt 0:00:00]} Bc5 {[%emt 0:00:00]} 4. O-O {[%emt 0:00:12]} Nf6 {[%emt 0:00:00]} 5. d3 {[%emt 0:00:10]} a6 {[%emt 0:00:01]} 6. c3 {[%emt 0:00:34]} Ba7 {[%emt 0:00:18]} 7. Re1 {[%emt 0:01:40]} d6 {[%emt 0:00:11]} 8. Bb3 {[%emt 0:00:11]} O-O {[%emt 0:00:11]} 9. h3 {[%emt 0:01:07]} h6 {[%emt 0:03:35]} 10. Nbd2 {[%emt 0:01:29]} Nh5 {[%emt 0:00:16]} 11. Nf1 {[%emt 0:05:13]} Qf6 {[%emt 0:00:28]} 12. Be3 {[%emt 0:01:11]} Bxe3 {[%emt 0:00:07]} 13. Nxe3 {[%emt 0:06:23]} Nf4 {[%emt 0:00:06]} 14. Nd5 {[%emt 0:04:01]} Nxd5 {[%emt 0:00:06]} 15. exd5 {[%emt 0:02:01]} Ne7 {[%emt 0:00:08]} 16. d4 {[%emt 0:02:52]} Ng6 {[%emt 0:00:08]} 17. dxe5 {[%emt 0:04:31]} dxe5 {[%emt 0:00:06]} 18. Nh2 {[%emt 0:07:16]} Bd7 {[%emt 0:15:57]} 19. Qf3 {[%emt 0:08:48]} Qd6 {[%emt 0:00:47]} 20. Bc2 {[%emt 0:03:49]} f5 {[%emt 0:00:42]} 21. Qg3 {[%emt 0:04:49]} Rae8 {[%emt 0:04:38]} 22. Rad1 {[%emt 0:02:21]} Rf6 {[%emt 0:09:26]} 23. Qe3 {[%emt 0:05:49]} Nf4 {[%emt 0:12:40]} 24. Nf1 {[%emt 0:02:15]} e4 {[%emt 0:05:25]} 25. c4 {[%emt 0:13:26]} b6 {[%emt 0:03:06]} 0-1

[Event "GER-chT Youth Countries 2020"]
[Site "Berlin"]
[Date "2020.09.30"]
[Round "2"]
[White "Milare, Tyron"]
[Black "Niermann, Tristan"]
[Result "1/2-1/2"]
[ECO "A61"]
[WhiteElo "2176"]
[BlackElo "2262"]
[Annotator "ChessBase"]
[PlyCount "133"]
[EventDate "2020.09.30"]
[EventType "team-tourn"]
[EventRounds "7"]
[EventCountry "GER"]
[SourceTitle "playchess.com"]
[Source "ChessBase"]
[SourceQuality "1"]
[WhiteTeam "Brandenburg"]
[BlackTeam "Nordrhein-Westfalen"]
[WhiteTeamCountry "GER"]
[BlackTeamCountry "GER"]
[TimeControl "30/5400+30:0"]

1. d4 {[%emt 0:00:00]} Nf6 {[%emt 0:00:00]} 2. Nf3 {[%emt 0:00:00]} e6 {[%emt 0:00:00]} 3. c4 {[%emt 0:00:00]} c5 {[%emt 0:00:00]} 4. d5 {[%emt 0:00:11]} exd5 {[%emt 0:00:00]} 5. cxd5 {[%emt 0:00:05]} d6 {[%emt 0:00:00]} 6. Nc3 {[%emt 0:00:04]} g6 {[%emt 0:00:15]} 7. e4 {[%emt 0:00:14]} a6 {[%emt 0:00:19]} 8. a4 {[%emt 0:00:17]} Bg7 {[%emt 0:00:06]} 9. h3 {[%emt 0:00:10]} O-O {[%emt 0:00:27]} 10. Be2 {[%emt 0:00:05]} Nbd7 {[%emt 0:04:23]} 11. O-O {[%emt 0:00:34]} Qe7 {[%emt 0:02:07]} 12. Bd3 {[%emt 0:02:54]} Nh5 {[%emt 0:04:24]} 13. Bg5 {[%emt 0:01:49]} Bf6 {[%emt 0:00:09]} 14. Bh6 {[%emt 0:03:18]} Re8 {[%emt 0:04:22]} 15. Qd2 {[%emt 0:02:30]} Ne5 {[%emt 0:09:58]} 16. Nxe5 {[%emt 0:01:25]} Qxe5 {[%emt 0:02:43]} 17. Be3 {[%emt 0:04:58]} g5 {[%emt 0:04:58]} 18. f4 {[%emt 0:08:11]} gxf4 {[%emt 0:03:17]} 19. Bxf4 {[%emt 0:00:31]} Nxf4 {[%emt 0:00:18]} 20. Qxf4 {[%emt 0:00:10]} Qxf4 {[%emt 0:02:06]} 21. Rxf4 {[%emt 0:00:06]} Be5 {[%emt 0:01:18]} 22. Rf3 {[%emt 0:00:17]} Rb8 {[%emt 0:02:01]} 23. Ra2 {[%emt 0:03:58]} Bd7 {[%emt 0:05:28]} 24. a5 {[%emt 0:05:49]} b5 {[%emt 0:04:50]} 25. axb6 {[%emt 0:00:12]} Rxb6 {[%emt 0:02:59]} 26. Bc4 Rf8 {[%emt 0:03:26]} 27. b3 {[%emt 0:06:42]} f5 {[%emt 0:05:33]} 28. exf5 {[%emt 0:02:17]} Bxf5 {[%emt 0:01:04]} 29. Ne2 {[%emt 0:02:01]} Bc8 {[%emt 0:09:20]} 30. Rxf8+ {[%emt 0:00:47]} Kxf8 {[%emt 0:00:07]} 31. Kf2 {[%emt 1:30:26]} Rb7 {[%emt 1:33:44]} 32. Ke3 {[%emt 0:01:10]} Re7 {[%emt 0:03:12]} 33. Nf4 {[%emt 0:07:51]} Bd4+ {[%emt 0:00:39]} 34. Kf3 {[%emt 0:07:59]} Re3+ {[%emt 0:00:47]} 35. Kf2 {[%emt 0:00:07]} Rxb3+ {[%emt 0:07:28]} 36. Ke2 {[%emt 0:00:43]} Rb2+ {[%emt 0:01:53]} 37. Rxb2 {[%emt 0:00:06]} Bxb2 {[%emt 0:00:05]} 38. Ne6+ {[%emt 0:00:04]} Ke7 {[%emt 0:00:24]} 39. Kd3 {[%emt 0:01:32]} a5 {[%emt 0:00:51]} 40. Kc2 {[%emt 0:00:55]} Bf6 {[%emt 0:00:56]} 41. Kb3 {[%emt 0:01:54]} Bh4 {[%emt 0:04:17]} 42. g4 {[%emt 0:01:52]} h6 {[%emt 0:03:32]} 43. Ng7 {[%emt 0:00:19]} Kf6 {[%emt 0:02:50]} 44. Nf5 {[%emt 0:00:04]} Bxf5 {[%emt 0:00:11]} 45. gxf5 {[%emt 0:00:05]} Kxf5 {[%emt 0:00:05]} 46. Bb5 {[%emt 0:00:04]} Ke4 {[%emt 0:03:13]} 47. Kc4 {[%emt 0:00:19]} Ke3 {[%emt 0:02:45]} 48. Ba4 {[%emt 0:00:16]} Kd2 {[%emt 0:00:00]} 49. Bb5 {[%emt 0:00:00]} Kc2 {[%emt 0:00:00]} 50. Ba4+ {[%emt 0:00:00]} Kb2 {[%emt 0:00:00]} 51. Bd7 {[%emt 0:00:00]} Ka3 {[%emt 0:00:00]} 52. Be8 {[%emt 0:00:00]} Kb2 {[%emt 0:00:00]} 53. Bd7 {[%emt 0:00:00]} Kc2 {[%emt 0:00:00]} 54. Ba4+ {[%emt 0:00:00]} Kd2 {[%emt 0:00:00]} 55. Bb5 {[%emt 0:00:00]} Ke3 {[%emt 0:00:00]} 56. Bc6 {[%emt 0:00:00]} Ke4 {[%emt 0:00:00]} 57. Bb5 {[%emt 0:00:00]} Kf4 {[%emt 0:00:00]} 58. Bd7 {[%emt 0:00:00]} Kg3 {[%emt 0:00:00]} 59. Kb5 {[%emt 0:00:00]} Bd8 {[%emt 0:00:00]} 60. Bc8 {[%emt 0:00:00]} Kf4 {[%emt 0:00:00]} 61. Bd7 {[%emt 1:01:51]} h5 {[%emt 1:06:22]} 62. Kc4 {[%emt 0:00:29]} Kg3 {[%emt 0:00:35]} 63. Kb5 {[%emt 0:00:15]} h4 {[%emt 0:00:50]} 64. Bc8 {[%emt 0:00:45]} Kf3 {[%emt 0:00:08]} 65. Bd7 {[%emt 0:00:07]} Kf4 {[%emt 0:00:05]} 66. Kc4 {[%emt 0:00:08]} Ke3 {[%emt 0:02:07]} 67. Bc6 {[%emt 0:00:19]} 1/2-1/2